{"text_format":"1","workbook":"xlsx","n_sheets":2,"sheets":["Deltagarsvar","Sammanställning"],"not_rendered":{"charts":0,"images":11,"macros":1,"external_links":0,"defined_names":0,"comments":2,"pivot_tables":0},"unopened":[],"bounds":{"document_bytes":16777216,"sheet_cells":100000,"rows_first":2000,"rows_last":500,"rows_between":2000,"halvings":0,"cell_chars":16384,"cell_head_chars":4096},"cells_cut":0,"cells_raw":0,"read":"whole","date_system":"1900"}

{"sheet":"Deltagarsvar","index":0,"n_rows":206,"n_cols":16,"rows_kept":206,"cut":false,"hidden":false,"merged":[[0,13,0,14],[3,0,3,1]]}
["IPULS - Kalkylmall för utvärdering, deltagarsvar"]
[]
["Version 2"]
["HJÄLP",null,null,null,null,null,null,null,null,null,null,null,null,null,null,"HJÄLP"]
["Deltagare",null,"Fråga"]
["Nr","Kommentar",1,2,3,4,5,6,7,8,"Fråga 9a","Fråga 9b","Fråga 10a","Fråga 10b","Fråga 11","Fråga 12"]
[1]
[2]
[3]
[4]
[5]
[6]
[7]
[8]
[9]
[10]
[11]
[12]
[13]
[14]
[15]
[16]
[17]
[18]
[19]
[20]
[21]
[22]
[23]
[24]
[25]
[26]
[27]
[28]
[29]
[30]
[31]
[32]
[33]
[34]
[35]
[36]
[37]
[38]
[39]
[40]
[41]
[42]
[43]
[44]
[45]
[46]
[47]
[48]
[49]
[50]
[51]
[52]
[53]
[54]
[55]
[56]
[57]
[58]
[59]
[60]
[61]
[62]
[63]
[64]
[65]
[66]
[67]
[68]
[69]
[70]
[71]
[72]
[73]
[74]
[75]
[76]
[77]
[78]
[79]
[80]
[81]
[82]
[83]
[84]
[85]
[86]
[87]
[88]
[89]
[90]
[91]
[92]
[93]
[94]
[95]
[96]
[97]
[98]
[99]
[100]
[101]
[102]
[103]
[104]
[105]
[106]
[107]
[108]
[109]
[110]
[111]
[112]
[113]
[114]
[115]
[116]
[117]
[118]
[119]
[120]
[121]
[122]
[123]
[124]
[125]
[126]
[127]
[128]
[129]
[130]
[131]
[132]
[133]
[134]
[135]
[136]
[137]
[138]
[139]
[140]
[141]
[142]
[143]
[144]
[145]
[146]
[147]
[148]
[149]
[150]
[151]
[152]
[153]
[154]
[155]
[156]
[157]
[158]
[159]
[160]
[161]
[162]
[163]
[164]
[165]
[166]
[167]
[168]
[169]
[170]
[171]
[172]
[173]
[174]
[175]
[176]
[177]
[178]
[179]
[180]
[181]
[182]
[183]
[184]
[185]
[186]
[187]
[188]
[189]
[190]
[191]
[192]
[193]
[194]
[195]
[196]
[197]
[198]
[199]
[200]

{"sheet":"Sammanställning","index":1,"n_rows":75,"n_cols":10,"rows_kept":75,"cut":false,"hidden":false,"merged":[[5,0,5,2],[36,0,36,8],[3,3,3,8],[3,0,3,2],[28,0,28,9],[22,0,22,9],[4,5,4,7],[5,5,5,7],[6,5,6,7],[4,3,4,4],[5,3,5,4],[69,3,69,8],[57,0,57,8],[59,0,59,8],[4,0,4,2],[49,1,49,8],[50,1,50,8],[53,1,53,8],[54,1,54,8],[8,0,8,8],[26,0,26,8],[62,0,62,8],[66,0,66,9],[67,0,67,2],[67,3,67,8],[64,0,64,8],[68,3,68,8],[46,0,46,8],[18,0,18,8],[14,0,14,8],[32,0,32,8],[42,0,42,9],[71,0,71,2],[69,0,69,2],[70,0,70,2],[68,0,68,2],[70,3,70,8]]}
["IPULS - Kalkylmall för utvärdering, sammanställning"]
[]
["Version 2"]
["Utbildningens namn:",null,null,null,null,null,null,null,null,"HJÄLP"]
["IPULS-nummer:",null,null,null,null,"Datum:"]
["Antal kursdeltagare:",null,null,null,null,"Antal utvärderingar:"]
[null,null,null,null,null,"Sökande/plats:"]
[]
["INNEHÅLL OCH MÅL",null,null,null,null,null,null,null,null,"HJÄLP"]
["Fördelning på de olika svarsalternativen och medelvärde"]
["1. Hur svarade utbildningen mot utbildningsbeskrivningen?"]
["Svar",1,2,3,4,5,6,"Medel","Ej tillämpligt","Kan ej bedöma"]
["Fördelning",{"$f":"COUNTIF(Deltagarsvar!C7:C206,1)","v":0},{"$f":"COUNTIF(Deltagarsvar!C7:C206,2)","v":0},{"$f":"COUNTIF(Deltagarsvar!C7:C206,3)","v":0},{"$f":"COUNTIF(Deltagarsvar!C7:C206,4)","v":0},{"$f":"COUNTIF(Deltagarsvar!C7:C206,5)","v":0},{"$f":"COUNTIF(Deltagarsvar!C7:C206,6)","v":0},{"$f":"AVERAGE(Deltagarsvar!C7:C206)","v":{"$error":"#DIV/0!"}},{"$f":"COUNTIF(Deltagarsvar!C7:C206,\"e\")","v":0},{"$f":"COUNTIF(Deltagarsvar!C7:C206,\"k\")","v":0}]
[]
["2. Uppfylldes de angivna utbildningsmålen avseende teoretiska kunskaper?"]
["Svar",1,2,3,4,5,6,"Medel","Ej tillämpligt","Kan ej bedöma"]
["Fördelning",{"$f":"COUNTIF(Deltagarsvar!D7:D206,1)","v":0},{"$f":"COUNTIF(Deltagarsvar!D7:D206,2)","v":0},{"$f":"COUNTIF(Deltagarsvar!D7:D206,3)","v":0},{"$f":"COUNTIF(Deltagarsvar!D7:D206,4)","v":0},{"$f":"COUNTIF(Deltagarsvar!D7:D206,5)","v":0},{"$f":"COUNTIF(Deltagarsvar!D7:D206,6)","v":0},{"$f":"AVERAGE(Deltagarsvar!D7:D206)","v":{"$error":"#DIV/0!"}},{"$f":"COUNTIF(Deltagarsvar!D7:D206,\"e\")","v":0},{"$f":"COUNTIF(Deltagarsvar!D7:D206,\"k\")","v":0}]
[]
["3. Uppfylldes de angivna utbildningsmålen avseende praktiska färdigheter?"]
["Svar",1,2,3,4,5,6,"Medel","Ej tillämpligt","Kan ej bedöma"]
["Fördelning",{"$f":"COUNTIF(Deltagarsvar!E7:E206,1)","v":0},{"$f":"COUNTIF(Deltagarsvar!E7:E206,2)","v":0},{"$f":"COUNTIF(Deltagarsvar!E7:E206,3)","v":0},{"$f":"COUNTIF(Deltagarsvar!E7:E206,4)","v":0},{"$f":"COUNTIF(Deltagarsvar!E7:E206,5)","v":0},{"$f":"COUNTIF(Deltagarsvar!E7:E206,6)","v":0},{"$f":"AVERAGE(Deltagarsvar!E7:E206)","v":{"$error":"#DIV/0!"}},{"$f":"COUNTIF(Deltagarsvar!E7:E206,\"e\")","v":0},{"$f":"COUNTIF(Deltagarsvar!E7:E206,\"k\")","v":0}]
[]
["4. Var utbildningens pedagogiska arbetsformer anpassad till utbildningens mål och innehåll?"]
["Svar",1,2,3,4,5,6,"Medel","Ej tillämpligt","Kan ej bedöma"]
["Fördelning",{"$f":"COUNTIF(Deltagarsvar!F7:F206,1)","v":0},{"$f":"COUNTIF(Deltagarsvar!F7:F206,2)","v":0},{"$f":"COUNTIF(Deltagarsvar!F7:F206,3)","v":0},{"$f":"COUNTIF(Deltagarsvar!F7:F206,4)","v":0},{"$f":"COUNTIF(Deltagarsvar!F7:F206,5)","v":0},{"$f":"COUNTIF(Deltagarsvar!F7:F206,6)","v":0},{"$f":"AVERAGE(Deltagarsvar!F7:F206)","v":{"$error":"#DIV/0!"}},{"$f":"COUNTIF(Deltagarsvar!F7:F206,\"e\")","v":0},{"$f":"COUNTIF(Deltagarsvar!F7:F206,\"k\")","v":0}]
[]
["TILLÄMPNING EFTER UTBILDNING",null,null,null,null,null,null,null,null,"HJÄLP"]
["Fördelning på de olika svarsalternativen och medelvärde"]
["5. Kommer Du att för egen del kunna tillämpa det Du lärt dig i Din kliniska vardag?"]
["Svar",1,2,3,4,5,6,"Medel","Ej tillämpligt","Kan ej bedöma"]
["Fördelning",{"$f":"COUNTIF(Deltagarsvar!G7:G206,1)","v":0},{"$f":"COUNTIF(Deltagarsvar!G7:G206,2)","v":0},{"$f":"COUNTIF(Deltagarsvar!G7:G206,3)","v":0},{"$f":"COUNTIF(Deltagarsvar!G7:G206,4)","v":0},{"$f":"COUNTIF(Deltagarsvar!G7:G206,5)","v":0},{"$f":"COUNTIF(Deltagarsvar!G7:G206,6)","v":0},{"$f":"AVERAGE(Deltagarsvar!G7:G206)","v":{"$error":"#DIV/0!"}},{"$f":"COUNTIF(Deltagarsvar!G7:G206,\"e\")","v":0},{"$f":"COUNTIF(Deltagarsvar!G7:G206,\"k\")","v":0}]
[]
["6. Har utbildningen givit Dig stöd (t ex material och metoder) att förmedla din nyvunna kompetens vidare till kollegor och medarbetare i din verksamhet?"]
["Svar",1,2,3,4,5,6,"Medel","Ej tillämpligt","Kan ej bedöma"]
["Fördelning",{"$f":"COUNTIF(Deltagarsvar!H7:H206,1)","v":0},{"$f":"COUNTIF(Deltagarsvar!H7:H206,2)","v":0},{"$f":"COUNTIF(Deltagarsvar!H7:H206,3)","v":0},{"$f":"COUNTIF(Deltagarsvar!H7:H206,4)","v":0},{"$f":"COUNTIF(Deltagarsvar!H7:H206,5)","v":0},{"$f":"COUNTIF(Deltagarsvar!H7:H206,6)","v":0},{"$f":"AVERAGE(Deltagarsvar!H7:H206)","v":{"$error":"#DIV/0!"}},{"$f":"COUNTIF(Deltagarsvar!H7:H206,\"e\")","v":0},{"$f":"COUNTIF(Deltagarsvar!H7:H206,\"k\")","v":0}]
[]
["ALLMÄN BEDÖMNING",null,null,null,null,null,null,null,null,"HJÄLP"]
["Fördelning på de olika svarsalternativen och medelvärde"]
["7. Hur bedömer du utbildningen som helhet?"]
["Svar",1,2,3,4,5,6,"Medel","Ej tillämpligt","Kan ej bedöma"]
["Fördelning",{"$f":"COUNTIF(Deltagarsvar!I7:I206,1)","v":0},{"$f":"COUNTIF(Deltagarsvar!I7:I206,2)","v":0},{"$f":"COUNTIF(Deltagarsvar!I7:I206,3)","v":0},{"$f":"COUNTIF(Deltagarsvar!I7:I206,4)","v":0},{"$f":"COUNTIF(Deltagarsvar!I7:I206,5)","v":0},{"$f":"COUNTIF(Deltagarsvar!I7:I206,6)","v":0},{"$f":"AVERAGE(Deltagarsvar!I7:I206)","v":{"$error":"#DIV/0!"}},{"$f":"COUNTIF(Deltagarsvar!I7:I206,\"e\")","v":0},{"$f":"COUNTIF(Deltagarsvar!I7:I206,\"k\")","v":0}]
[]
["8. Skulle du rekommendera utbildningen till en kollega i en situation liknande Din?"]
["Svar",1,2,3,4,5,6,"Medel","Ej tillämpligt","Kan ej bedöma"]
["Fördelning",{"$f":"COUNTIF(Deltagarsvar!J7:J206,1)","v":0},{"$f":"COUNTIF(Deltagarsvar!J7:J206,2)","v":0},{"$f":"COUNTIF(Deltagarsvar!J7:J206,3)","v":0},{"$f":"COUNTIF(Deltagarsvar!J7:J206,4)","v":0},{"$f":"COUNTIF(Deltagarsvar!J7:J206,5)","v":0},{"$f":"COUNTIF(Deltagarsvar!J7:J206,6)","v":0},{"$f":"AVERAGE(Deltagarsvar!J7:J216)","v":{"$error":"#DIV/0!"}},{"$f":"COUNTIF(Deltagarsvar!J7:J206,\"e\")","v":0},{"$f":"COUNTIF(Deltagarsvar!J7:J206,\"k\")","v":0}]
[]
["UTVECKLING AV UTBILDNING",null,null,null,null,null,null,null,null,"HJÄLP"]
["Redovisa angivna uppgifter"]
["9. Var det något du saknade i utbildningen eller något du tycker kan utgå?"]
["9a. Saknade"]
["9a. Kan utgå"]
[]
["10. Vilka var utbildningens tre främsta styrkor respektive svagheter?"]
["10a. Styrkor"]
["10a. Svagheter"]
[]
["11. Har Du några förslag till hur utbildningen skulle kunna förbättras?"]
[]
[]
["ÖVRIGT",null,null,null,null,null,null,null,null,"HJÄLP"]
["Redovisa kommentarer"]
["12. Övriga kommentarer"]
[]
[]
["UTBILDNINGSPRODUCENTENS REDOVISNING",null,null,null,null,null,null,null,null,"HJÄLP"]
[]
["Utifrån genomförd utbildning och sammanställd utvärdering  gör vi/ser vi  följande "]
["Reflektioner"]
["Omedelbara slutsatser"]
["Förbättringsmöjligheter"]
["Åtgärder som planeras"]
[]
["Är du klar med din utvärdering?"]
["1. Spara filen med IPULS-nummer och datum i filnamnet, ex \"Utv_20041234_040525.xls\""]
["2.Skicka filen till info@ipuls.se och ange IPULS-nummer i e-postmeddelandet."]